Cogmind - Beta 16 @@@ ROGUE MODE // 2026.01.02 @ 14:56:54 Player: GiggleBox Result: Destroyed by 56-K8I(j) with Overtuned Pulse Rifle Performance ------------- Evolutions (0) 0 Regions Visited (3) 600 Robots Destroyed (38) 190 Value Destroyed (1131) 1131 Prototype IDs (13) 260 Alien Tech Used (0) 0 Bonus (-39) -39 TOTAL SCORE: 2142 Bonus ------- Friendly Fire -39 Cogmind --------- Core Integrity 0/250 Matter 481/500 Energy 160/160 System Corruption 0% Temperature Cool (43) Movement Treading (240) Ox1 Location -8/Recycling Parts ------- > --- POWER (1) -------- Light Nuclear Core > --- PROPULSION (2) --- Light Treads > --- UTILITY (2) ------ Medium Storage Unit High-capacity Matter Pod > --- WEAPON (2) ------- Assault Rifle Assault Cannon > --- INVENTORY (10) --- Nuclear Core Light Treads Light Treads Light Treads Advanced Treads Seismic Detector Heavy Particle Cannon Assault Rifle Grenade Launcher Peak State ------------ > --- POWER ------------ Light Nuclear Core > --- PROPULSION ------- Light Treads Spiked Treads > --- UTILITY ---------- Medium Storage Unit Improved Light Armor Plating > --- WEAPON ----------- Assault Rifle Battle Cannon > --- INVENTORY -------- Nuclear Core Light Treads Light Treads Advanced Treads High-capacity Matter Pod Seismic Detector Heavy Particle Cannon Assault Rifle Grenade Launcher [Rating: 14] Favorites ----------- Power Light Ion Engine Engine Light Ion Engine Power Core Light Nuclear Core Propulsion Light Treads Treads Light Treads Leg Aluminum Leg Utility Medium Storage Unit Device Seismic Detector Storage Medium Storage Unit Protection Improved Light Armor Plating Weapon Assault Rifle Energy Gun EM Pulse Gun Ballistic Gun Assault Rifle Ballistic Cannon Battle Cannon Launcher Grenade Launcher Build | -11 -10 -10 -8 ------- Run | Yrd Mat Sub Rec Slots Evolved . | . . . . Power . | . . . . Propulsion . | . . . . Utility . | . . . . Weapon . | . . . . Parts Attached 17 | 4 3 5 5 Power 1 | . . 1 . Engine . | . . . . Core 1 | . . 1 . Reactor . | . . . . Propulsion 4 | 2 . 1 1 Treads 4 | 2 . 1 1 Leg . | . . . . Wheel . | . . . . Hover . | . . . . Flight . | . . . . Utility 5 | 1 2 . 2 Device 2 | 1 1 . . Storage 2 | . 1 . 1 Processor . | . . . . Hackware . | . . . . Protection 1 | . . . 1 Artifact . | . . . . Weapon 7 | 1 1 3 2 Energy Gun . | . . . . Energy Cannon . | . . . . Ballistic Gun 3 | 1 1 . 1 Ballistic Cannon 3 | . . 2 1 Launcher 1 | . . 1 . Special Weapon . | . . . . Impact Weapon . | . . . . Slashing Weapon . | . . . . Piercing Weapon . | . . . . Special Melee Weapon . | . . . . Unidentified Prototypes . | . . . . Parts Lost 6 | . . 2 4 Power 1 | . . 1 . Propulsion 2 | . . 1 1 Utility 1 | . . . 1 Weapon 2 | . . . 2 Highest Loss Streak 1 | . . 1 1 To Critical Strikes . | . . . . Average Backups 9 | 6 9 9 8 Power 1 | 1 1 . . Propulsion 3 | 4 4 3 3 Utility . | . . 1 1 Weapon 3 | 1 3 4 3 Tool/Special . | . . . . Unused Backups 20 | 3 6 4 7 Power 4 | 1 1 1 1 Propulsion 8 | . 3 1 4 Utility 2 | 1 1 . . Weapon 6 | 1 1 2 2 Tool/Special . | . . . . Average Slot Usage (%) 99 | . 99 99 100 Engine 8 | . 14 12 . Core 5 | . . . 14 Treads 27 | . 27 27 28 Device 10 | . 14 14 4 Storage 15 | . 14 14 19 Protection 1 | . . . 4 Ballistic Gun 17 | . 28 7 9 Ballistic Cannon 10 | . . 20 18 Peak Build Rating 14 | 7 8 12 14 Average Rating 10 | 6 7 10 13 On Entrance 8 | 6 7 8 11 Avg Prop Armor Cover (%) . | . . . . Naked Turns . | . . . . Heaviest Build 27 | 13 18 22 27 Greatest Support 40 | 40 40 40 40 Greatest Overweight (x) 1 | . . 1 . Average Overweight (x) . | . . . . Largest Inventory Capacity 10 | 8 10 10 10 Average Capacity 9 | 8 9 10 10 Most Carried 10 | 6 10 10 10 Average Carried 9 | 6 9 9 8 Final Capacity 10 | 8 10 10 10 Final Carried 10 | 6 10 8 9 Class Distribution -------------------- 93% | Mutant 6% | Commander-Mutant Dominant Class ---------------- Mutant | -10/Materials Mutant | -10/Subcaves Mutant | -8/Recycling Resources | -11 -10 -10 -8 ----------- Run | Yrd Mat Sub Rec Matter Collected 1327 | 255 422 74 576 Remotely . | . . . . Salvage Created 1391 | 125 822 58 386 Parts 70 | 7 47 6 10 Haulers Intercepted 2 | . 2 . . Recyclers Shooed 3 | . 2 . 1 Parts Field Recycled . | . . . . Retrieved Matter . | . . . . Parts Self-Destructed 4 | . . 4 . Prevented . | . . . . Parts Restored . | . . . . Kills | -11 -10 -10 -8 ------- Run | Yrd Mat Sub Rec Combat Hostiles Destroyed 32 | . 17 6 9 Guns 22 | . 17 . 5 Cannons 10 | . . 6 4 Classes Destroyed 10 | 2 4 1 3 Tunneler 1 | 1 . . . Hauler 2 | . 2 . . Recycler 1 | 1 . . . Watcher 2 | . 2 . . Swarmer 6 | . 3 3 . Grunt 14 | . 14 . . Protector 1 | . . . 1 Sentry 7 | . . . 7 Programmer 1 | . . . 1 Subdweller 3 | . . 3 . Best Kill Streak 6 | 2 6 3 4 Combat Bots Only 6 | . 6 3 4 Max Kills in Single Turn 1 | 1 1 1 1 Gunslinging . | . . . . Exploded . | . . . . Melee . | . . . . Uniques/NPCs Destroyed . | . . . . Combat | -11 -10 -10 -8 -------- Run | Yrd Mat Sub Rec Hostile Shots Fired 146 | . 59 43 44 Missed 33 | . 15 10 8 Hits 113 | . 44 33 36 Projectile 113 | . 44 33 36 Critical Strikes 2 | . . 1 1 Damage Taken 1586 | . 485 551 550 Core 255 | . 69 91 95 Absorbed by Shields . | . . . . Regen/Repaired (Parts) 126 | . 126 . . Core Remaining (%) 100 | 100 . . . Volleys Fired 106 | 3 52 28 23 Largest 2 | 2 2 2 2 Hottest 70 | 60 40 66 70 Shots Fired 209 | 6 104 53 46 Gun 131 | 6 104 . 21 Cannon 77 | . . 52 25 Launcher 1 | . . 1 . Special . | . . . . Kinetic 207 | 5 104 52 46 Thermal . | . . . . Explosive 1 | . . 1 . Electromagnetic 1 | 1 . . . Robot Hit Streak 15 | 3 15 15 14 Robot Miss Streak 3 | 1 3 2 1 Penetration Max . | . . . . Secondary Targets . | . . . . Shots Hit Robots 131 | 3 69 24 35 Core Hits 59 | 3 35 8 13 Critical Kills 1 | . 1 . . Critical Parts Destroyed . | . . . . Critical Strikes 2 | . 1 . 1 Destroy 1 | . 1 . . Blast 1 | . . . 1 Melee Attacks . | . . . . Impact . | . . . . Slashing . | . . . . Piercing . | . . . . Sneak Attacks . | . . . . Combat Hostiles . | . . . . Follow-up Attacks . | . . . . Damage Inflicted 2067 | 36 908 528 595 Guns 1164 | 36 897 . 231 Cannons 883 | . . 528 355 Explosions . | . . . . Melee . | . . . . Ramming 20 | . 11 . 9 Kinetic 2034 | 23 897 528 586 Thermal . | . . . . Explosive . | . . . . Electromagnetic 13 | 13 . . . Impact . | . . . . Slashing . | . . . . Piercing . | . . . . Highest Corruption . | . . . . Average Corruption . | . . . . Corruption Purged . | . . . . Corruption Blocked . | . . . . Overload Shots . | . . . . Overflow Damage 12 | . . 12 . Projectiles 12 | . . 12 . Explosions . | . . . . Melee . | . . . . Knockbacks 11 | . . 11 . Impact . | . . . . Kinetic 9 | . . 9 . Secondary 2 | . . 2 . Self-Inflicted Damage . | . . . . Shots . | . . . . Rammed 4 | . 3 . 1 Targets Rammed 4 | . 3 . 1 Kicked . | . . . . Crushed . | . . . . Highest Temperature 66 | . 2 . 66 Average Temperature 16 | . 2 . 17 Received Heat Transfer 459 | . 237 42 180 Siege Activations . | . . . . Martial Activations . | . . . . Shielding Activations . | . . . . Robots Disrupted . | . . . . Combat Hostiles . | . . . . Robots Corrupted . | . . . . Combat Hostiles . | . . . . Parts Fried . | . . . . Impact Corruptions 1 | . . 1 . Robots Melted . | . . . . Combat Hostiles . | . . . . Parts Melted . | . . . . Heat Transferred . | . . . . Parts Sabotaged . | . . . . Parts Stolen . | . . . . Parts Stripped . | . . . . Power Chain Reactions . | . . . . Alert | -11 -10 -10 -8 ------- Run | Yrd Mat Sub Rec Maximum Alert Level 1 | . 1 . . Low Security (%) 96 | 100 93 . 100 Level 1 3 | . 6 . . Level 2 . | . . . . Level 3 . | . . . . Level 4 . | . . . . Level 5 . | . . . . High Security . | . . . . Max Security . | . . . . Peak Influence 216 | 10 216 . 120 Initial 63 | . . . 63 Average 60 | 1 76 . 42 Influence Increases 1059 | 10 511 165 373 Destroy 0b10 Robot/C 560 | . 340 60 160 Destroy 0b10 Robot/NC 35 | 10 20 . 5 Destroy Leader 78 | . 78 . . Successful Hack 49 | . 27 . 22 Select Force Hacks 210 | . 30 . 180 Destroy Structure 7 | . 1 . 6 Lose Combat Pursuer 120 | . 15 105 . Influence Decreases 1059 | 10 511 33 505 Entered New Map 69 | . . . 69 Time Decay 791 | 10 362 13 406 Lost Part 50 | . . 20 30 Purge Threat 149 | . 149 . . Squads Dispatched 4 | . 4 . . Investigation 4 | . 4 . . Extermination . | . . . . Reinforcement . | . . . . Assault . | . . . . Garrison . | . . . . Intercept . | . . . . Searches Triggered . | . . . . Construction Impeded . | . . . . Haulers Reinforced . | . . . . Active Scanning Responses . | . . . . Cargo Convoy Interrupts . | . . . . Stealth | -11 -10 -10 -8 --------- Run | Yrd Mat Sub Rec Distress Signals 3 | . 2 . 1 Communications Jammed . | . . . . Distress Signals . | . . . . Times Spotted 47 | . 24 13 10 Peak Tracking Total 5 | . 5 4 5 Tactical Retreats 4 | . 1 3 . Traps | -11 -10 -10 -8 ------- Run | Yrd Mat Sub Rec Traps Triggered 3 | . 3 . . Indirectly . | . . . . Trap Hack Attempts . | . . . . Triggered . | . . . . Disarmed . | . . . . Reprogrammed . | . . . . Reused . | . . . . Traps Extracted . | . . . . Installed . | . . . . Triggered . | . . . . Machines | -11 -10 -10 -8 ---------- Run | Yrd Mat Sub Rec Machines Disabled . | . . . . Max in Single Turn . | . . . . Machines Repaired . | . . . . Machines Dismantled . | . . . . Machines Sabotaged . | . . . . Overloaded Fab Kills . | . . . . Hacking | -11 -10 -10 -8 --------- Run | Yrd Mat Sub Rec Machines Accessed 21 | . 9 . 12 Terminals 13 | . 7 . 6 Fabricators . | . . . . Repair Stations 1 | . 1 . . Recycling Units 7 | . 1 . 6 Scanalyzers . | . . . . Garrison Access . | . . . . Total Hacks 50 | . 30 . 20 Successful 32 | . 20 . 12 Failed 16 | . 9 . 7 Catastrophic 2 | . 1 . 1 Database Lockouts 2 | . 1 . 1 Manual 39 | . 23 . 16 Terminals 40 | . 27 . 13 Fabricators . | . . . . Repair Stations 2 | . 2 . . Recycling Units 8 | . 1 . 7 Scanalyzers . | . . . . Garrison Access . | . . . . Terminal Hacks 13 | . 8 . 5 Part Schematic 1 | . 1 . . Robot Schematic 1 | . 1 . . Robot Analysis 1 | . 1 . . Prototype ID Bank 6 | . 1 . 5 Branch Access Points 1 | . 1 . . Alert Level 1 | . 1 . . Unreport Threat 1 | . 1 . . Locate Traps 1 | . 1 . . Fabricator Hacks . | . . . . Repair Station Hacks 2 | . 2 . . Scan Component 1 | . 1 . . Repair 1 | . 1 . . Recycling Unit Hacks . | . . . . Scanalyzer . | . . . . Garrison Access Hacks . | . . . . Unauthorized Hacks 17 | . 10 . 7 Terminals 10 | . 9 . 1 Botnet 4 | . 3 . 1 Operators 1 | . 1 . . Skim 5 | . 5 . . Fabricators . | . . . . Repair Stations . | . . . . Recycling Units 7 | . 1 . 6 Tunnel 7 | . 1 . 6 Scanalyzers . | . . . . Garrison Access . | . . . . Data Cores Recovered . | . . . . Used . | . . . . Hacking Detections 13 | . 7 . 6 Full Trace Events . | . . . . Feedback Events . | . . . . Feedback Blocked . | . . . . Robot Schematics Acquired 1 | . 1 . . Robots Built . | . . . . Authchips . | . . . . Time . | . . . . Total Robot Build Rating . | . . . . Part Schematics Acquired 1 | . 1 . . Parts Built . | . . . . Authchips . | . . . . Time . | . . . . Total Part Build Rating . | . . . . Part Studies Acquired . | . . . . Parts Repaired 1 | . 1 . . Time 26 | . 26 . . Parts Recycled . | . . . . Recycled Matter . | . . . . Retrieved Matter . | . . . . Retrieved Components . | . . . . Parts Scanalyzed . | . . . . Part Schematics Acquired . | . . . . Parts Damaged . | . . . . Bothacking | -11 -10 -10 -8 ------------ Run | Yrd Mat Sub Rec Used RIF Installer . | . . . . Robots Hacked . | . . . . Non-combat . | . . . . Combat . | . . . . Robot Hacks Applied . | . . . . Relay Couplers Released . | . . . . Fabnet Peak Effective % . | . . . . Robots Rewired 5 | . . . 5 Allies Hacked . | . . . . Hacks Repelled . | . . . . Allies | -11 -10 -10 -8 -------- Run | Yrd Mat Sub Rec Total Allies 5 | . . . 5 Largest Group 5 | . . . 5 Highest-Rated Group 43 | . . . 43 Highest-Rated Ally 16 | . . . 16 Total Orders . | . . . . Ally Attacks 5 | . . . 5 Total Damage 52 | . . . 52 Kills . | . . . . Allies Corrupted . | . . . . Allies Melted . | . . . . Intel | -11 -10 -10 -8 ------- Run | Yrd Mat Sub Rec Active Infowar (turns) 2479 | 19 1546 515 399 Seismic 2479 | 19 1546 515 399 Robot Analysis Total 1 | . 1 . . Derelict Logs Recovered 2 | . . 2 . Drone Launches . | . . . . Drone Recoveries . | . . . . Exploration | -11 -10 -10 -8 ------------- Run | Yrd Mat Sub Rec Turns Passed 3328 | 63 1546 515 1204 Spaces Moved 1527 | 30 573 257 667 Core . | . . . . Treads 1527 | 30 573 257 667 Legs . | . . . . Wheels . | . . . . Hover . | . . . . Flight . | . . . . Fastest Speed 160 | 160 160 160 160 Average Speed 160 | 160 160 161 160 Slowest Speed 260 | 160 160 260 160 Overloaded Moves . | . . . . Propulsion Burnouts . | . . . . Robots Hopped . | . . . . Potential Cave-ins . | . . . . Cave-ins Triggered . | . . . . Exploration Rate (%) 52 | 4 84 22 99 Regions Visited 3 Branch Regions 2 Pre-discovered Areas 9 | . 3 . 6 Known Exits Taken 1 | . . 1 . Unknown Exits Taken 2 | 1 1 . . Scrap Searched . | . . . . Spaces Dug 1 | . . 1 . Terrain Destroyed 14 | . . 11 3 Melee . | . . . . Projectile 8 | . . 5 3 AOE 6 | . . 6 . Terrain Rammed . | . . . . Walls Destroyed . | . . . . Machines Disabled . | . . . . Actions | -11 -10 -10 -8 --------- Run | Yrd Mat Sub Rec Total 2201 | 37 1101 305 758 Wait 480 | 1 453 11 15 Move 1524 | 29 572 256 667 Hop . | . . . . Pick Up 16 | . 9 1 6 Fast Attach 2 | 1 1 . . Attach 5 | . . 1 4 Detach . | . . . . Swap 13 | 3 3 5 2 Drop 12 | . 8 3 1 Fire 106 | 3 52 28 23 Melee . | . . . . Ram . | . . . . Kick . | . . . . Crush 4 | . 3 . 1 Escape Stasis . | . . . . Rewire 39 | . . . 39 Trap . | . . . . Miscellaneous . | . . . . Route ------- -11/Scrapyard -10/Materials (discovered 6 exits: *Mat x3 / *Min x2 / [*Sub]) -10/Subcaves -8/Recycling (discovered 1 exit: [*Fac]) History --------- Turn | Location | Event 16 | -11/Scrapyard | Discovered new exit (range 3) 64 | -11/Scrapyard | Entered Materials 305 | -10/Materials | Build established: Mutant 441 | -10/Materials | Discovered new exit (range 5) 560 | -10/Materials | Discovered new exit (range 15) 812 | -10/Materials | Repaired Lgt. Treads 1040 | -10/Materials | Central database locked down 1131 | -10/Materials | Identified exit to Mines 1189 | -10/Materials | Discovered new exit (range 12) 1192 | -10/Materials | Identified exit to Materials 1208 | -10/Materials | Discovered new exit (range 5) 1254 | -10/Materials | Learned location of Mines (-9) 1306 | -10/Materials | Loaded intel: 1 repair station location 1348 | -10/Materials | Loaded intel: 9 trap records 1380 | -10/Materials | Learned location of 2 exits from Mines 1435 | -10/Materials | Learned location of 2 exits from Mines 1478 | -10/Materials | Learned Storage emergency access door positions 1533 | -10/Materials | Learned 2 Storage zone layouts 1598 | -10/Materials | Learned location of Storage (-8) 1610 | -10/Materials | Entered Subcaves 1611 | -10/Subcaves | Approached by a straggling Scientist 1611 | -10/Subcaves | Identified exit to Recycling 1651 | -10/Subcaves | Shifting Twisted Machinery released Battle Cannon 1666 | -10/Subcaves | Shifting Twisted Machinery released Humpback 1681 | -10/Subcaves | Shifting Twisted Machinery released Sub. Optics 1688 | -10/Subcaves | A swath of the cavern ceiling suddenly collapsed 1792 | -10/Subcaves | Shifting Twisted Machinery released Battle Cannon 1800 | -10/Subcaves | Shifting Twisted Machinery released Spk. Treads 2019 | -10/Subcaves | Learned Materials emergency access door positions 2091 | -10/Subcaves | Core integrity fell below 50% 2125 | -10/Subcaves | Entered Recycling 2646 | -8/Recycling | Discovered new exit (range 15) 2731 | -8/Recycling | Scanned before Scraplab entrance 2874 | -8/Recycling | Core integrity fell below 20% 3280 | -8/Recycling | Entered Scraplab 3323 | -8/Recycling | Angered Scraplab inhabitants 3329 | -8/Recycling | Destroyed by 56-K8I(j) with Overtuned Pulse Rifle Last Messages --------------- 02958_ R-06 Scavenger collects Remote Shield. 02960_ Acquired 5 matter. 02962_ Acquired 11 matter. 02969_ U-05 Engineer builds a Wall. 03040_ Attempting to rewire K-01 Serf. 03040_ K-01 Serf rewired. 03046_ Attempting to rewire K-01 Serf. 03054_ K-01 Serf rewired. 03069_ Attempting to rewire A-02 Transporter. 03092_ A-02 Transporter rewired. 03098_ Attempting to rewire S-10 Pest. 03100_ S-10 Pest rewired. 03104_ Attempting to rewire G-47 Trooper. 03104_ G-47 Trooper rewired. 03259_ The wall retracts into the floor. 03281_ 3G-GMK(c): "A little light reading never hurt anyone, but if you dare try to take our prototype, you'll regret it." 03324_ Trooper 3a suffers critical hit (Burn). 03324_ Trooper 3a destroyed. 03326_ Spk. Treads destroyed. Map ----- +----------------------------------------------------+ | ????????????????????????????????? | | ????????????????????????????????? | | ????????????????????????????????? | | ????????????????????????????????? | | ????????????????????????????????? | | ????????????????????????????????? | | ????????????????????????????????? | | ????????????????????????????????? | | ????????????????????????????????? | | ???????#######??????????????????? | | ???##### ??????????????????? | | ???# # """ ?????????????????? | | #### < # """""?????????????????? | | # # """"" ????????????????? | | !# # """"" #???????????????? | | # # """ #???????????????? | | ! + + #???????????????? | | # # "Y" #???????????????? | | !# # """ #???????????????? | | ! # ##########???????????????? | | # %%#??????????????????????? | | #### %%#???????######?????????? | | ???# %#???????# #?????????? | | ???# ###???????# #??###????? | | ???# ########### ####j##???? | | ???# + @%k#???? | | ???# ########### #####a#???? | | ???# %%#???????# #???# #???? | | ???# %%#???????# #???# #???? | | ???# %#???????######???# #???? | | ???# ###????????????#####/####? | | ???# #??????????????#"" "#? | | ???# ##########?????#"& ""#? | | ???# # #?????#" "#? | | ???# # #?????#"" X"#? | | ???# # """ #?????#"& "#? | | ??## / """ #?????#" ""#? | | ??# # """ #?????#"X "#? | | ??## ##########?????#" ###? | | ???# #??????????????# "" #??? | | ??## ##?????????????# """ #? | | ### ##????????????##########? | | ##??????????????????????? | | #???????????????????????? | | #???????????????????????? | | ### #???????????????????????? | | ??##%% ##???????????????????????? | | ??# #????????????????????????? | | ??## #????????????????????????? | | ???#% #????????????????????????? | +----------------------------------------------------+ Best States ------------- Heat Dissipation 25 Energy Generation 14 Energy Capacity 160 Matter Stores 500 Matter Capacity 500 Sight Range 16 Terrain Scan Density 10 Armor Coverage 150 Evasion (%) 40 Recoil Reduction 2 Item Schematics ----------------- Hcp. Storage Unit | -10/Materials | Hacked Robot Schematics ------------------ M-13 Machinist | -10/Materials | Hacked Fabricated ------------ Nothing Repaired ---------- Lgt. Treads | 10% | -10/Materials Studied --------- None Alien Tech Used ----------------- None Achievements -------------- None Challenges ------------ None Game ------ Seed MatterSmallBuckler Manual? 0 Play Time 00:22:00 Cumulative 268.3 hours Start 2026.01.02 @ 14:36:39 End 2026.01.02 @ 14:56:54 Sessions 1 Manual Loads 0 Difficulty Rogue Special Mode None Game No. 201 Rogue 201 Adventurer 0 Explorer 0 Win Type - Total 9 Types 5/1/1/2/0/0/0/0/0/0 Lore% 78 Gallery% 71 Achievement% 58 Wizard Run 0 Options --------- Layout 0 ASCII 0 Keyboard 1 Movement Numpad Keybinds 0 Fullscreen 1 Font 24/Terminus Map View 76x50 Zoom Use 0% Tactical HUD 1 Map Filters NONE Filters NONE Steam 1 RUN: 5ec45f03-c97d-4d4b-8f81-0c1682e2c21d